bitfinex/quotes_ETHUSD_20220731
["timestamp","ask_amount","ask_price","bid_price","bid_amount"]
[1659291807377,0.4266,1744.5,1743.8,3.4]
[1659291807578,0.4766,1744.6,1743.8,3.35]
[1659291807781,0.05,1744.6,1743.9,0.4268]
[1659291807986,0.05,1744.7,1743.9,0.60278436]
[1659291808186,0.6265,1744.8,1743.9,0.60278436]
[1659291808371,0.4765,1744.8,1744.2,0.05]
[1659291808593,11.5737,1744.9,1744.1,0.4267]
[1659291808820,0.36375879,1744.8,1744.1,3.32474672]
[1659291809025,0.36375879,1744.8,1744.1,3.50073108]
[1659291809507,0.36375879,1744.8,1744.2,2.89804672]
[1659291809873,0.36375879,1744.8,1744.2,3.07403108]
[1659291811291,0.36375879,1744.8,1744.3,0.05]
[1659291811491,7.9296,1745.0,1744.4,2.94804672]
[1659291811691,0.05,1745.2,1744.5,2.89804672]
[1659291811893,12.2946,1745.3,1744.6,0.05]
[1659291812127,12.2446,1745.3,1744.6,2.89804672]
[1659291812448,12.2446,1745.3,1744.7,0.17598436]
[1659291812950,12.2446,1745.3,1744.7,0.22598436]
[1659291813101,12.2446,1745.3,1744.7,3.12403108]
[1659291813301,11.8182,1745.3,1744.8,0.17598436]
[1659291813735,15.5826,1745.4,1744.8,0.17598436]
[1659291813917,11.72,1745.4,1744.8,0.17598436]
[1659291814398,11.72,1745.4,1744.8,0.65248436]
[1659291814801,11.72,1745.4,1744.8,0.22598436]
[1659291815002,12.08375879,1745.4,1744.8,3.12403108]
[1659291815233,12.08375879,1745.4,1744.9,0.17598436]
[1659291816131,0.36375879,1745.4,1744.9,0.17598436]
[1659291816473,0.36375879,1745.4,1744.8,2.89804672]
[1659291818078,0.36375879,1745.4,1744.9,0.05]
[1659291820825,0.36375879,1745.4,1744.8,3.16989139]
[1659291821023,0.51375879,1745.4,1744.8,3.16989139]
[1659291821460,0.51375879,1745.4,1744.8,2.99390703]
[1659291821674,0.15,1745.1,1744.6,0.05]
[1659291821971,0.15,1744.9,1744.4,3.14270337]
[1659291822185,0.15,1744.9,1744.4,3.09270337]
[1659291822338,0.05,1745.1,1744.4,9.34075009]
[1659291822545,11.77,1745.2,1744.5,2.89804672]
[1659291822739,11.15374384,1745.2,1744.7,3.35]
[1659291822940,24.96,1746.0,1745.2,0.05]
[1659291822941,11.72,1745.4,1745.2,0.05]
[1659291823140,11.72,1745.9,1745.3,6.67444672]
[1659291823338,11.72,1745.9,1745.4,2.89804672]
[1659291823749,11.72,1745.9,1745.5,0.17598436]
[1659291824341,0.03848759,1745.7,1745.5,0.17598436]
[1659291826150,0.03848759,1745.7,1745.2,0.05]
[1659291826151,8.0,1745.6,1745.2,0.05]
[1659291826331,7.80239937,1745.6,1744.9,0.05]
[1659291826561,0.79005879,1745.6,1744.8,0.05]
[1659291826841,0.41375879,1745.6,1744.8,0.4265]
[1659291827045,3.31180551,1745.6,1744.8,0.05]
[1659291827225,0.41375879,1745.6,1744.8,0.05]
[1659291827435,0.41375879,1745.6,1744.8,2.94804672]
[1659291827878,2.89804672,1745.5,1744.7,0.4766]
[1659291828044,2.89804672,1745.5,1744.4,1.29320337]
[1659291828045,0.15,1744.7,1744.6,0.05]
[1659291828243,0.15,1744.7,1743.9,3.1098]
[1659291828244,6.39804672,1744.7,1744.2,0.05]
[1659291828462,0.15,1744.5,1744.3,0.04143]
[1659291828846,3.5,1744.7,1744.3,0.04143]
[1659291829028,3.86375879,1744.7,1744.3,0.04143]
[1659291829228,0.15,1744.5,1744.3,0.04143]
[1659291829844,3.86375879,1744.7,1744.2,0.04194]
[1659291830053,3.86375879,1744.7,1744.2,2.89804672]
[1659291830232,0.36375879,1744.7,1744.2,2.84804672]
[1659291830442,11.8635,1744.9,1744.3,0.07703162]
[1659291830644,11.8135,1744.9,1744.3,3.40177834]
[1659291831476,12.17725879,1744.9,1744.3,3.40177834]
[1659291831634,3.47454672,1744.8,1744.3,0.02703162]
[1659291831833,2.89804672,1744.8,1744.1,0.05]
[1659291832076,2.89804672,1744.8,1744.0,3.3]
[1659291832077,0.34471435,1744.7,1744.0,3.3]
[1659291832287,0.36375879,1744.7,1744.1,2.89804672]
[1659291832585,0.36375879,1744.7,1744.1,3.32474672]
[1659291833084,0.36375879,1744.7,1744.2,2.89804672]
[1659291835202,3.41180551,1744.7,1744.0,0.05]
[1659291835380,3.41180551,1744.7,1743.9,8.253]
[1659291835581,3.41180551,1744.7,1743.9,11.10104672]
[1659291835818,0.51375879,1744.7,1744.0,0.02703626]
[1659291836032,0.41375879,1744.7,1744.0,0.02703626]
[1659291836233,0.26375879,1744.7,1744.0,2.92508298]
[1659291836391,0.26375879,1744.7,1744.1,0.1]
[1659291836592,0.15,1744.5,1744.0,0.02703626]
[1659291836806,0.4266,1744.4,1743.8,0.33508331]
[1659291837004,2.89804672,1744.4,1743.8,0.28508331]
[1659291837233,0.4267,1744.3,1743.6,7.8262]
[1659291837539,0.4267,1744.3,1743.6,10.67424672]
[1659291838143,3.32474672,1744.3,1743.6,8.06393589]
[1659291838349,3.04804672,1744.2,1743.6,8.06393589]
[1659291838579,0.15,1744.0,1743.6,8.06393589]
[1659291838988,0.15,1744.0,1743.6,0.28773589]
[1659291839279,0.05,1744.2,1743.6,0.12704247]
[1659291839488,0.05,1744.4,1743.6,0.12704247]
[1659291839639,3.56946107,1744.3,1743.6,0.12704247]
[1659291839840,0.67141435,1744.3,1743.6,3.02508919]
[1659291840064,0.24471435,1744.3,1743.6,3.02508919]
[1659291840272,0.01904444,1744.2,1743.6,3.02508919]
[1659291840477,0.01904444,1744.2,1743.6,0.12704247]
[1659291840641,0.05,1744.4,1743.8,0.05]
[1659291840841,0.4266,1744.5,1743.8,0.05]
[1659291840842,0.05,1744.5,1744.0,4.167]
[1659291841041,0.09278355,1744.7,1744.1,6.87474672]
[1659291841285,0.09278355,1744.7,1744.2,2.89804672]
[1659291841286,0.04278355,1744.7,1744.2,2.89804672]
[1659291841441,0.04278355,1744.7,1744.3,0.15341454]
[1659291841643,0.04278355,1744.7,1744.1,0.4767]
[1659291841842,0.04278355,1744.7,1743.9,6.9768]
[1659291842161,2.89804672,1744.6,1743.9,0.4268]
[1659291842394,0.4266,1744.6,1743.9,3.15342679]
[1659291842582,0.4266,1744.6,1743.9,6.65342679]
[1659291843014,0.69035879,1744.6,1744.0,0.2865103]
[1659291843322,0.26375879,1744.6,1744.1,3.05146739]
[1659291843625,0.26375879,1744.6,1744.2,0.4267]
[1659291843835,0.26375879,1744.6,1744.1,3.38796479]
[1659291843981,11.72,1744.7,1744.2,2.89804672]
[1659291844992,11.72,1744.7,1744.3,0.2864727]
[1659291845817,11.72,1744.7,1744.3,3.18451942]
[1659291846221,11.76300385,1744.7,1744.3,3.18451942]
[1659291846408,11.76300385,1744.7,1744.3,3.28719014]
[1659291846737,11.76300385,1744.7,1744.6,3.5]
[1659291846738,0.04300385,1744.7,1744.6,3.5]
[1659291847028,11.72,1745.0,1744.6,0.10267027]
[1659291847196,11.72,1745.0,1744.3,3.9767]
[1659291847406,11.72,1745.0,1744.6,3.5]
[1659291847610,11.72,1745.0,1744.9,0.639]
[1659291847826,6.7603174,1746.1,1744.9,0.639]
[1659291847827,11.439,1746.2,1745.3,0.05]
[1659291848025,0.3,1746.0,1745.9,0.639]
[1659291848239,4.1024,1746.6,1745.9,0.639]
[1659291848445,4.1024,1746.6,1746.5,4.139]
[1659291848446,3.59220083,1746.6,1746.5,4.139]
[1659291848643,0.68975879,1746.9,1746.1,0.05]
[1659291848791,10.0,1747.0,1746.4,0.05]
[1659291849242,10.0,1747.0,1746.5,0.83070546]
[1659291849392,0.26375879,1746.9,1746.5,0.83070546]
[1659291849590,0.26375879,1746.9,1746.2,0.05]
[1659291849878,0.26375879,1746.9,1746.2,0.1]
[1659291850066,0.15,1746.8,1746.2,0.1]
[1659291850217,0.26375879,1746.7,1746.2,0.1]
[1659291850564,0.15,1746.6,1746.2,0.15082214]
[1659291851113,0.26375879,1746.7,1746.2,0.15082214]
[1659291851814,0.16375879,1746.7,1746.2,0.15082214]
[1659291852379,0.15,1746.7,1746.2,0.15082214]
[1659291853224,0.15,1746.5,1746.2,0.15082214]
[1659291853798,10.426,1747.0,1746.2,0.15082214]
[1659291853799,10.0,1747.0,1746.3,7.08104672]
[1659291854096,0.07859421,1746.9,1746.3,4.35898436]
[1659291854266,10.0,1747.0,1746.1,3.05]
[1659291854267,3.32839738,1746.8,1746.1,3.05]
[1659291854466,3.32839738,1746.8,1746.1,3.0]
[1659291854683,3.32839738,1746.8,1746.0,4.35]
[1659291854848,0.426,1746.8,1746.1,2.89804672]
[1659291855052,0.05,1746.9,1746.1,6.93915147]
[1659291855359,0.476,1746.9,1746.2,3.07900228]
[1659291855553,0.426,1746.9,1746.2,3.07900228]
[1659291855757,0.16375879,1746.8,1746.2,3.07900228]
[1659291856057,0.16375879,1746.8,1746.2,0.18095556]
[1659291857708,0.05,1746.9,1746.7,4.183]
[1659291857876,10.0,1747.0,1746.7,10.88104672]
[1659291857877,9.95,1747.0,1746.7,10.88104672]
[1659291858078,9.95,1747.0,1746.8,0.60198436]
[1659291858283,9.95,1747.0,1746.8,0.17598436]
[1659291858593,9.95,1747.0,1746.5,0.4261]
[1659291858963,9.95,1747.0,1746.4,3.34471435]
[1659291859167,9.95,1747.0,1746.6,2.89804672]
[1659291859413,9.95,1747.0,1746.6,3.07403108]
[1659291859591,9.95,1747.0,1746.8,4.4690047]
[1659291859800,9.95,1747.0,1746.9,9.82404672]
[1659291859999,9.95,1747.0,1746.9,3.0]
[1659291860204,9.95,1747.0,1746.8,0.17598436]
[1659291860205,9.66036626,1747.0,1746.6,3.4261]
[1659291860398,9.73896047,1747.0,1746.6,5.89804672]
[1659291860582,9.73896047,1747.0,1746.5,1.34471435]
[1659291860779,9.73896047,1747.0,1746.5,4.24276107]
[1659291860984,9.73896047,1747.0,1746.5,1.34471435]
[1659291861166,9.73896047,1747.0,1746.5,0.34471435]
[1659291861394,9.73896047,1747.0,1746.6,2.89804672]
[1659291861596,9.66036626,1747.0,1746.6,2.89804672]
[1659291861770,9.66036626,1747.0,1746.6,0.08327]
[1659291861979,9.66036626,1747.0,1746.6,2.98131672]
[1659291862206,9.66036626,1747.0,1746.8,4.30440579]
[1659291862394,9.66036626,1747.0,1746.9,2.89804672]
[1659291862599,9.66036626,1747.0,1746.9,0.17598436]
[1659291862918,9.66036626,1747.0,1746.6,1.0954296]
[1659291863216,9.66036626,1747.0,1746.8,0.17598436]
[1659291863378,9.66036626,1747.0,1746.9,2.89804672]
[1659291863586,9.66036626,1747.0,1746.9,6.32404672]
[1659291863788,6.36315058,1747.8,1747.0,7.0]
[1659291863980,3.7057,1747.8,1747.2,4.212]
[1659291864179,3.35602419,1747.7,1747.1,0.17598436]
[1659291864433,7.9332,1747.7,1746.9,0.10004002]
[1659291864712,7.9332,1747.7,1746.9,0.05004002]
[1659291864935,0.34471435,1747.6,1746.9,0.05004002]
[1659291865138,0.4259,1747.5,1746.9,0.05004002]
[1659291866440,0.34471435,1747.4,1746.9,0.05004002]
[1659291867844,0.4759,1747.6,1746.9,0.05004002]
[1659291868022,0.4259,1747.6,1747.0,0.2860217]
[1659291868391,0.77061435,1747.6,1747.1,0.17598436]
[1659291869033,0.77061435,1747.6,1746.9,0.10004002]
[1659291869234,3.66866107,1747.6,1746.9,0.05004002]
[1659291869604,3.66866107,1747.6,1746.9,4.1500711]
[1659291869605,0.34471435,1747.6,1746.9,4.1500711]
[1659291869818,0.34471435,1747.6,1747.0,3.0]
[1659291870237,0.34471435,1747.6,1747.0,0.2860097]
[1659291870436,0.34471435,1747.6,1747.0,2.89804672]
[1659291870637,0.34471435,1747.6,1747.0,0.46202356]
[1659291870800,0.34471435,1747.6,1747.1,0.12140579]
[1659291871005,3.24276107,1747.6,1747.0,0.46202356]
[1659291871312,2.89804672,1747.5,1747.0,0.46202356]
[1659291871516,2.89804672,1747.5,1747.0,0.2860392]
[1659291871702,0.77061435,1747.6,1747.0,0.2860392]
[1659291872113,0.77061435,1747.6,1746.9,0.22602438]
[1659291872317,0.77061435,1747.6,1746.9,3.1240711]
[1659291872896,0.77061435,1747.6,1746.9,3.4101415]
[1659291873065,0.77061435,1747.6,1746.9,0.51209478]
[1659291873250,0.77061435,1747.6,1746.9,0.22602438]
[1659291873646,0.77061435,1747.6,1746.9,3.1240711]
[1659291873851,0.34471435,1747.6,1747.4,0.12140579]
[1659291874092,12.0095,1747.8,1747.0,3.23410652]
[1659291874247,11.5837,1747.8,1747.4,0.17598436]
[1659291874664,11.5837,1747.8,1747.4,0.46197196]
[1659291874890,11.5837,1747.8,1747.4,0.17598436]
[1659291875064,0.07859421,1747.6,1747.1,0.05]
[1659291875251,12.13809421,1747.8,1747.2,2.89804672]
[1659291875457,11.5837,1747.8,1747.2,2.89804672]
[1659291875646,11.5837,1747.8,1747.2,3.18405572]
[1659291875850,14.56034093,1747.8,1747.2,0.17598436]
[1659291876081,14.98614093,1747.8,1747.2,0.17598436]
[1659291876656,14.90754672,1747.8,1747.2,0.17598436]
[1659291877007,2.86763441,1747.5,1747.0,1.42998]
[1659291877251,2.86763441,1747.5,1746.9,0.47604002]
[1659291877252,5.76568113,1747.5,1746.9,0.05004002]
[1659291877454,2.89804672,1747.5,1746.9,0.05004002]
[1659291877605,0.34471435,1747.4,1746.9,0.05004002]
[1659291878248,0.34471435,1747.4,1746.9,0.22602438]
[1659291878547,0.05,1747.6,1747.0,0.286048]
[1659291878710,0.34471435,1747.6,1747.0,0.286048]
[1659291878913,3.66866107,1747.6,1746.9,0.65202438]
[1659291879113,2.89804672,1747.5,1746.9,0.22602438]
[1659291879311,0.84920856,1747.4,1746.9,0.22602438]
[1659291879652,2.89804672,1747.3,1746.9,0.22602438]
[1659291879811,2.89804672,1747.3,1746.9,0.51210388]
[1659291880034,2.89804672,1747.3,1746.9,0.33611952]
[1659291880256,3.24276107,1747.3,1746.9,0.33611952]
[1659291880465,1.30759421,1747.0,1746.9,0.33611952]
[1659291880635,1.30759421,1747.0,1746.9,0.05004002]
[1659291880636,1.229,1747.0,1746.9,0.05004002]
[1659291880830,1.57371435,1747.0,1746.9,0.05004002]
[1659291881031,4.47176107,1747.0,1746.9,0.05004002]
[1659291881272,6.5,1746.9,1746.6,0.28072514]
[1659291881454,3.40264093,1746.8,1746.3,0.22598436]
[1659291881660,2.97664093,1746.8,1746.3,0.17598436]
[1659291881867,0.07859421,1746.5,1746.3,0.17598436]
[1659291882031,0.07859421,1746.5,1745.9,1.33292769]
[1659291882241,0.07859421,1746.5,1745.9,5.28292769]
[1659291882242,2.97664093,1746.5,1745.9,5.28292769]
[1659291882941,3.32414672,1746.4,1745.9,0.28292769]
[1659291883140,2.89804672,1746.4,1746.0,0.17598436]
[1659291883741,0.07859421,1746.5,1745.7,0.32994614]
[1659291883932,0.05,1746.5,1745.8,3.07403108]
[1659291884140,14.73999421,1746.8,1745.8,4.53726528]
[1659291884141,0.05,1746.6,1745.8,4.53726528]
[1659291884338,0.05,1746.6,1745.9,0.17598436]
[1659291884580,0.05,1746.7,1745.9,0.17598436]
[1659291884735,2.89804672,1746.7,1745.9,0.17598436]
[1659291884936,0.34471435,1746.6,1745.9,0.17598436]
[1659291885137,0.34471435,1746.6,1745.9,0.46217426]
[1659291885640,8.0099,1747.2,1746.5,3.5]
[1659291885842,7.5839,1747.2,1746.7,1.29840579]
[1659291886146,0.07859421,1747.1,1746.6,0.17598436]
[1659291886336,0.426,1747.0,1746.4,0.09189]
[1659291886538,0.426,1747.1,1746.4,0.04189]
[1659291886987,7.5839,1747.2,1746.5,5.23038]
[1659291887145,0.07859421,1747.7,1746.6,7.50114672]
[1659291887347,15.8026,1747.8,1746.8,0.28602]
[1659291887564,15.8026,1747.8,1746.8,0.476]
[1659291887565,15.88119421,1747.8,1746.8,0.476]
[1659291887765,0.07859421,1747.1,1746.8,0.05]
[1659291888067,0.07859421,1747.1,1746.5,3.05]
[1659291888267,0.07859421,1747.1,1746.5,3.0]
[1659291888706,0.07859421,1746.8,1746.4,0.04189]
[1659291889008,8.86759421,1746.2,1746.1,0.05]
[1659291889165,8.86759421,1746.2,1745.7,0.05]
[1659291889166,0.27859421,1746.1,1745.7,0.05]
[1659291889367,0.07859421,1746.0,1745.4,0.05]
[1659291889585,0.4262,1746.1,1745.2,3.55]
[1659291889766,0.4262,1746.1,1745.5,1.01856699]
[1659291889767,0.4762,1746.1,1745.5,1.01856699]
[1659291889965,0.4262,1746.1,1745.5,1.46462944]
[1659291890203,16.0057,1746.2,1745.6,0.17598436]
[1659291890412,15.9557,1746.2,1745.6,0.17598436]
[1659291890770,0.07859421,1745.7,1745.5,0.44606245]
[1659291891332,0.12859421,1746.0,1745.5,0.62204681]
[1659291891500,3.9262,1746.1,1745.5,0.62204681]
[1659291892131,3.5,1746.1,1745.5,0.62204681]
[1659291892692,6.90284093,1746.1,1745.5,0.62204681]
[1659291893009,0.07859421,1745.7,1745.5,0.17598436]
[1659291893209,0.07859421,1745.7,1745.5,0.46227596]
[1659291893390,0.05,1746.0,1745.5,0.46227596]
[1659291893591,2.89804672,1746.1,1745.5,0.74294125]
[1659291893996,2.89804672,1746.1,1745.5,1.0876556]
[1659291894618,0.05,1746.2,1745.6,3.44575251]
[1659291894829,21.7999,1746.6,1745.6,3.44575251]
[1659291894830,21.7999,1746.6,1745.9,0.12140579]
[1659291895070,18.8468,1746.6,1746.1,0.2861809]
[1659291895339,21.74484672,1746.6,1746.1,0.2861809]
[1659291895541,21.74484672,1746.6,1746.2,0.17598436]
[1659291895749,3.71859421,1746.3,1746.2,0.17598436]
[1659291895900,0.64,1746.3,1746.2,0.17598436]
[1659291896714,0.07859421,1746.0,1745.8,0.4763]
[1659291896917,0.07859421,1746.0,1745.6,0.4263]
[1659291897101,0.426,1746.8,1745.9,1.173]
[1659291897300,3.14059,1747.6,1746.1,3.7861754]
[1659291897301,2.68089182,1747.2,1746.1,3.7861754]
[1659291897537,4.01697448,1747.4,1746.2,0.4262]
[1659291897736,2.67152455,1747.2,1746.2,0.4762]
[1659291897941,2.67152455,1747.2,1746.3,0.17598436]
[1659291898137,15.4835,1747.1,1746.3,0.17598436]
[1659291898525,15.4835,1747.1,1746.3,0.12598436]
[1659291898725,15.4835,1747.1,1746.4,0.34471435]
[1659291898970,2.89804672,1747.0,1746.4,0.34471435]
[1659291900042,1.43102,1747.4,1746.4,0.34471435]
[1659291900043,7.7431,1747.5,1746.9,1.177]
[1659291900244,7.7431,1747.5,1746.9,0.34471435]
[1659291900454,8.169,1747.5,1746.9,0.34471435]
[1659291900678,13.81464672,1747.4,1746.9,0.34471435]
[1659291900843,2.89804672,1747.3,1746.9,0.34471435]
[1659291901065,8.169,1747.5,1747.0,0.2]
[1659291901066,0.05,1747.5,1747.0,0.2]
[1659291901261,11.72,1747.6,1747.1,0.34471435]
[1659291901486,11.72,1747.6,1747.2,0.2]
[1659291901487,14.61804672,1747.6,1747.2,0.2]
[1659291901651,14.61804672,1747.6,1747.1,0.54471435]
[1659291901652,3.32394672,1747.5,1747.1,0.17598436]
[1659291901854,3.32394672,1747.5,1746.8,0.05]
[1659291901855,2.89804672,1747.4,1746.8,0.05]
[1659291902146,2.89804672,1747.4,1746.8,0.286096]
[1659291902349,11.3925,1747.5,1747.0,3.7]
[1659291902350,0.05,1747.5,1747.0,3.7]
[1659291902623,11.72,1747.6,1747.2,0.5719408]
[1659291902924,11.72,1747.6,1747.2,0.2859708]
[1659291903134,11.72,1747.6,1746.9,0.05]
[1659291903435,11.77,1747.7,1747.0,3.61012392]
[1659291903586,11.72,1747.7,1747.1,8.50511672]
[1659291903803,15.04384672,1747.7,1747.1,0.52069871]
[1659291904007,14.61804672,1747.7,1747.2,0.2859635]
[1659291904333,11.72,1747.7,1747.2,0.46194786]
[1659291904536,11.72,1747.7,1747.2,1.89192336]
[1659291904738,11.72,1747.7,1747.3,0.17598436]
[1659291905095,11.72,1747.7,1747.3,0.12598436]
[1659291905535,11.72,1747.7,1747.3,3.27175996]
[1659291905744,11.72,1747.7,1747.3,0.41201156]
[1659291905895,3.8807,1747.9,1747.4,5.01764543]
[1659291905896,0.05,1747.9,1747.4,5.01764543]
[1659291906100,0.05,1748.1,1747.7,1.173]
[1659291906370,11.72,1748.3,1747.7,4.473]
[1659291906543,11.72,1748.3,1747.8,0.17598436]
[1659291906734,11.72,1748.3,1747.8,3.07403108]
[1659291906895,11.72,1748.3,1747.6,0.76179]
[1659291906896,10.33320859,1748.4,1747.6,0.4759]
[1659291907096,10.80890859,1748.4,1747.5,0.4759]
[1659291907344,8.0953,1748.4,1747.6,2.89804672]
[1659291907547,0.05,1748.4,1747.7,1.37260196]
[1659291907715,3.8443,1748.5,1747.8,2.89804672]
[1659291907919,3.8443,1748.5,1747.8,3.07403108]
[1659291907920,3.7943,1748.5,1747.8,3.07403108]
[1659291908115,3.7943,1748.5,1747.8,3.24484856]
[1659291908316,3.7943,1748.5,1747.9,3.07403108]
[1659291908517,11.2058224,1748.6,1747.9,3.07403108]
[1659291908726,11.2058224,1748.6,1747.9,3.35990398]
[1659291909123,2.89804672,1748.5,1747.9,0.46185726]
[1659291909319,11.6314224,1748.6,1747.9,3.70461833]
[1659291909529,11.6314224,1748.6,1748.0,3.07403108]
[1659291909740,11.2058224,1748.6,1748.0,3.07403108]
[1659291910333,3.32364672,1748.5,1747.9,0.2858729]
[1659291910532,2.89804672,1748.4,1747.7,0.05]
[1659291910774,2.89804672,1748.4,1747.6,0.6359495]
[1659291910945,2.94804672,1748.4,1747.6,0.2859495]
[1659291911144,2.89804672,1748.3,1747.6,0.46193386]
[1659291911347,2.89804672,1748.3,1747.7,0.34471435]
[1659291911788,2.89804672,1748.3,1747.7,0.52069871]
[1659291911948,2.94804672,1748.4,1747.7,0.52069871]
[1659291912289,3.32374672,1748.3,1747.7,0.17598436]
[1659291912446,11.12383468,1748.2,1747.5,0.05]
[1659291912649,2.89804672,1747.8,1747.4,0.05]
[1659291912887,8.4258,1747.7,1746.8,0.28206044]
[1659291913086,2.89804672,1747.6,1746.6,0.4261]
[1659291913252,0.4759,1747.5,1746.6,0.6261]
[1659291913447,2.89804672,1747.4,1746.7,0.17598436]
[1659291913684,1.84804672,1747.4,1746.7,0.17598436]
[1659291913994,0.05,1747.5,1747.2,1.173]
[1659291914163,11.1623,1748.1,1747.0,0.426]
[1659291914164,0.05,1747.8,1747.0,0.426]
[1659291914360,2.89804672,1747.7,1746.9,1.42995]
[1659291914840,2.89804672,1747.7,1747.0,0.2859826]
[1659291915041,2.89804672,1747.7,1746.7,2.8878]
[1659291915042,0.4259,1747.6,1746.7,2.8878]
[1659291915244,5.54156027,1747.5,1746.6,0.4261]
[1659291915442,3.32394672,1747.4,1746.5,1.32256814]
[1659291915642,2.89804672,1747.3,1746.5,0.4261]
[1659291915891,0.426,1747.2,1746.4,1.480168]
[1659291916204,2.89804672,1747.1,1746.6,0.2861308]
[1659291916948,0.426,1747.2,1746.6,0.46211516]
[1659291917174,13.82664672,1747.3,1746.6,0.46211516]
[1659291917175,14.20254672,1747.3,1746.6,0.46211516]
[1659291917391,13.77664672,1747.3,1746.7,0.2]
[1659291917758,13.77664672,1747.3,1746.8,0.46207816]
[1659291917951,2.89804672,1747.1,1746.6,0.05]
[1659291918199,0.2,1746.7,1746.4,0.05]
[1659291918352,0.2,1746.7,1746.1,0.05]
[1659291918353,2.89804672,1746.6,1746.1,0.05]
[1659291918554,2.89804672,1746.6,1746.0,0.32792898]
[1659291918800,2.94804672,1746.7,1746.0,0.32792898]
[1659291919012,2.89804672,1746.7,1746.0,0.32792898]
[1659291919154,0.05,1746.8,1746.0,0.75412898]
[1659291919357,2.89804672,1746.8,1746.0,0.75102498]
[1659291919558,11.03984672,1746.8,1746.0,0.75102498]
[1659291919904,2.89804672,1746.7,1746.0,0.32482498]
[1659291920059,0.2,1746.5,1746.0,0.32482498]
[1659291920261,0.2,1746.3,1746.0,0.28680864]
[1659291920508,0.2,1746.3,1745.7,2.8553]
[1659291920673,0.2,1746.3,1745.7,2.8053]
[1659291920880,0.2,1746.3,1745.5,11.8087556]
[1659291921057,3.09804672,1746.3,1745.5,8.4276556]
[1659291921434,0.2,1746.1,1745.5,8.4276556]
[1659291921570,3.24196856,1746.2,1745.3,0.05]
[1659291921571,0.2,1745.6,1745.3,0.05]
[1659291921770,0.2,1745.6,1745.1,0.71724219]
[1659291922009,0.2,1745.6,1744.9,11.5941]
[1659291922154,0.05,1745.7,1745.1,3.5]
[1659291922354,0.05,1745.9,1745.3,3.0]
[1659291922597,0.05,1746.0,1745.4,2.89804672]
[1659291922753,21.7445,1746.1,1745.4,2.89804672]
[1659291922964,2.89804672,1746.0,1745.3,0.3362881]
[1659291923165,3.09804672,1746.0,1745.3,0.2862881]
[1659291923781,2.89804672,1746.0,1745.3,0.2862881]
[1659291924310,24.69254672,1746.1,1745.3,3.13433482]
[1659291924677,0.05,1746.1,1745.7,0.2]
[1659291924856,3.6002,1746.4,1745.7,0.2862439]
[1659291925057,0.34392184,1746.3,1745.7,0.2862439]
[1659291925471,0.54392184,1746.3,1745.8,0.4263]
[1659291925699,3.5502,1746.4,1745.8,3.32434672]
[1659291925907,3.5502,1746.4,1745.9,0.03661433]
[1659291926068,0.34392184,1746.5,1745.9,0.03661433]
[1659291927107,0.4261,1746.6,1746.1,8.0]
[1659291927324,8.0502,1747.5,1746.5,1.177]
[1659291927476,8.0502,1747.5,1746.6,2.89804672]
[1659291927477,0.4259,1747.4,1746.6,2.89804672]
[1659291927677,19.3464,1747.5,1746.6,4.52831672]
[1659291927909,19.3464,1747.5,1746.6,4.57831672]
[1659291928122,19.3464,1747.5,1747.1,0.2]
[1659291928123,30.6405,1747.5,1747.1,0.2]
[1659291928330,22.5903,1747.5,1747.1,0.2]
[1659291928878,11.72,1747.5,1747.1,0.2]
[1659291929076,11.72,1747.5,1747.0,0.35312156]
[1659291929613,0.05,1747.7,1747.1,0.426]
[1659291929819,18.7053,1748.1,1747.4,0.3]
[1659291929820,0.05,1747.9,1747.4,0.3]
[1659291929978,18.7553,1748.1,1747.5,3.32394672]
[1659291930179,0.05,1748.2,1747.5,3.66866107]
[1659291930409,7.96416111,1748.3,1747.5,3.24276107]
[1659291930575,7.66416111,1748.3,1747.5,3.41874543]
[1659291930777,8.08986111,1748.3,1747.5,3.41874543]
[1659291931021,8.08986111,1748.3,1747.6,0.2]
[1659291931401,7.66416111,1748.3,1747.7,0.34471435]
[1659291931775,10.56220783,1748.3,1747.7,0.34471435]
[1659291933208,2.704994,1748.2,1747.5,0.05]
[1659291933438,2.704994,1748.2,1747.4,0.4259]
[1659291933439,22.86400783,1748.3,1747.4,0.05]
[1659291933588,3.09804672,1748.1,1747.4,0.05]
[1659291933788,2.89804672,1748.0,1747.3,0.05]
[1659291934029,2.89804672,1748.0,1747.3,0.34471435]
[1659291934420,2.89804672,1748.0,1747.3,0.63069615]
[1659291934997,0.4258,1747.9,1747.3,0.63069615]
[1659291935417,0.4758,1748.0,1747.3,0.63069615]
[1659291935622,0.4258,1748.0,1747.4,2.89804672]
[1659291935801,0.4757,1748.2,1747.4,3.32394672]
[1659291936131,0.14696111,1748.3,1747.8,3.5]
[1659291936331,0.3561224,1748.6,1748.0,1.177]
[1659291936531,0.3561224,1748.6,1748.1,0.4257]
[1659291936731,0.3561224,1748.6,1748.2,0.34471435]
[1659291937325,0.3561224,1748.6,1748.2,3.24276107]
[1659291937604,0.3561224,1748.6,1748.2,3.3097975]
[1659291937801,0.3561224,1748.6,1748.2,0.41175078]
[1659291938049,0.2,1748.4,1747.9,0.05]
[1659291938356,0.4257,1748.3,1747.7,0.335905]
[1659291938519,0.05,1748.4,1747.8,2.89804672]
[1659291938708,0.5817224,1748.6,1747.8,2.89804672]
[1659291938907,0.5817224,1748.6,1747.7,1.34229935]
[1659291938908,6.0,1748.5,1747.7,1.10641935]
[1659291939140,0.4257,1748.4,1747.7,0.63061935]
[1659291939307,0.6256,1748.5,1747.7,0.58061935]
[1659291939818,0.2,1748.3,1747.7,0.58061935]
[1659291940197,0.4256,1748.5,1747.7,7.04572167]
[1659291940402,0.4256,1748.5,1747.7,7.22170603]
[1659291940600,0.4256,1748.5,1747.7,0.82365931]
[1659291940601,0.4756,1748.5,1747.7,0.82365931]
[1659291940801,0.4756,1748.5,1747.7,4.01346235]
[1659291941041,0.4756,1748.5,1747.7,5.44289235]
[1659291941201,0.05,1748.5,1747.9,0.285886]
[1659291941404,3.6561224,1748.6,1748.0,0.34471435]